Workbook

Sheet 人员名单
A1: 福泉市第一医共体2023年公开招聘临聘人员综合成绩及进入下一环节人员名单
A2: 序号 | B2: 姓名 | C2: 报考单位名称 | D2: 报考单位代码 | E2: 报考职位名称 | F2: 报考职位代码 | G2: 笔试成绩 | H2: 笔试环节成绩 | I2: 面试成绩 | J2: 面试环节成绩 | K2: 综合成绩 | L2: 所报岗位排名 | M2: 是否进入下一环节
A3: 1 | B3: 纪璇 | C3: 福泉市第一人民医院 | D3: 2001 | E3: 功能科超声医师 | F3: 02 | G3: 56.00 | H3: =G3*0.4 -> 22.40 | I3: 81.00 | J3: =I3*0.6 -> 48.60 | K3: =J3+H3 -> 71.00 | L3: 1 | M3: 是
A4: 2 | B4: 李春艳 | C4: 福泉市第一人民医院 | D4: 2001 | E4: 病理医师 | F4: 03 | G4: 61.00 | H4: 24.40 | I4: 66.00 | J4: 39.60 | K4: 64.00 | L4: 1 | M4: 是
A5: 3 | B5: 罗必敏 | C5: 福泉市第一人民医院 | D5: 2001 | E5: 检验人员 | F5: 04 | G5: 66.00 | H5: =G5*0.4 -> 26.40 | I5: 80.00 | J5: =I5*0.6 -> 48.00 | K5: =J5+H5 -> 74.40 | L5: 1 | M5: 是
A6: 4 | B6: 杨剑 | C6: 福泉市第一人民医院 | D6: 2001 | E6: 检验人员 | F6: 04 | G6: 66.00 | H6: 26.40 | I6: 79.00 | J6: 47.40 | K6: 73.80 | L6: 2 | M6: 否
A7: 5 | B7: 韦名璐 | C7: 福泉市第一人民医院 | D7: 2001 | E7: 检验人员 | F7: 04 | G7: 66.00 | H7: 26.40 | I7: 73.00 | J7: 43.80 | K7: 70.20 | L7: 3 | M7: 否
A8: 6 | B8: 郑清萌 | C8: 福泉市妇幼保健院 | D8: 2003 | E8: 护理人员 | F8: 05 | G8: 74.00 | H8: 29.60 | I8: 80.20 | J8: 48.12 | K8: 77.72 | L8: 1 | M8: 是
A9: 7 | B9: 彭君 | C9: 福泉市妇幼保健院 | D9: 2003 | E9: 护理人员 | F9: 05 | G9: 71.00 | H9: 28.40 | I9: 81.80 | J9: 49.08 | K9: 77.48 | L9: 2 | M9: 否
A10: 8 | B10: 管鸿敏 | C10: 福泉市妇幼保健院 | D10: 2003 | E10: 护理人员 | F10: 05 | G10: 74.00 | H10: 29.60 | I10: 69.40 | J10: 41.64 | K10: 71.24 | L10: 3 | M10: 否
A11: 9 | B11: 顾光成 | C11: 福泉市妇幼保健院 | D11: 2003 | E11: 收费人员 | F11: 06 | G11: 60.00 | H11: 24.00 | I11: 80.40 | J11: 48.24 | K11: 72.24 | L11: 1 | M11: 是
A12: 10 | B12: 李坤 | C12: 福泉市妇幼保健院 | D12: 2003 | E12: 收费人员 | F12: 06 | G12: 62.00 | H12: 24.80 | I12: 74.00 | J12: 44.40 | K12: 69.20 | L12: 2 | M12: 否
A13: 11 | B13: 龙小玉 | C13: 福泉市妇幼保健院 | D13: 2003 | E13: 收费人员 | F13: 06 | G13: 61.00 | H13: 24.40 | I13: 71.00 | J13: 42.60 | K13: 67.00 | L13: 3 | M13: 否
A14: 12 | B14: 刘昭 | C14: 福泉市妇幼保健院 | D14: 2003 | E14: 收费人员 | F14: 06 | G14: 60.00 | H14: 24.00 | I14: 68.80 | J14: 41.28 | K14: 65.28 | L14: 4 | M14: 否
A15: 13 | B15: 周大成 | C15: 福泉市第一人民医院藜山卫生院 | D15: 2004 | E15: 护理人员 | F15: 07 | G15: 73.00 | H15: =G15*0.4 -> 29.20 | I15: 74.40 | J15: =I15*0.6 -> 44.64 | K15: =J15+H15 -> 73.84 | L15: 1 | M15: 是
A16: 14 | B16: 屠树清 | C16: 福泉市第一人民医院藜山卫生院 | D16: 2004 | E16: 护理人员 | F16: 07 | G16: 70.00 | H16: 28.00 | I16: 76.00 | J16: 45.60 | K16: 73.60 | L16: 2 | M16: 否
A17: 15 | B17: 陈嫦 | C17: 福泉市第一人民医院藜山卫生院 | D17: 2004 | E17: 护理人员 | F17: 07 | G17: 78.00 | H17: 31.20 | I17: 69.20 | J17: 41.52 | K17: 72.72 | L17: 3 | M17: 否
A18: 16 | B18: 蒙正琴 | C18: 福泉市第一人民医院藜山卫生院 | D18: 2004 | E18: 护理人员 | F18: 07 | G18: 70.00 | H18: 28.00 | I18: 74.00 | J18: 44.40 | K18: 72.40 | L18: 4 | M18: 否
A19: 17 | B19: 冉进梅 | C19: 福泉市第一人民医院藜山卫生院 | D19: 2004 | E19: 护理人员 | F19: 07 | G19: 70.00 | H19: 28.00 | I19: 72.20 | J19: 43.32 | K19: 71.32 | L19: 5 | M19: 否
A20: 18 | B20: 段淋会 | C20: 福泉市第一人民医院陆坪中心卫生院 | D20: 2005 | E20: 护理人员 | F20: 08 | G20: 81.00 | H20: 32.40 | I20: 78.20 | J20: 46.92 | K20: 79.32 | L20: 1 | M20: 是
A21: 19 | B21: 倪妮 | C21: 福泉市第一人民医院陆坪中心卫生院 | D21: 2005 | E21: 护理人员 | F21: 08 | G21: 73.00 | H21: 29.20 | I21: 78.00 | J21: 46.80 | K21: 76.00 | L21: 2 | M21: 否
A22: 20 | B22: 刘诗霞 | C22: 福泉市第一人民医院陆坪中心卫生院 | D22: 2005 | E22: 护理人员 | F22: 08 | G22: 73.00 | H22: =G22*0.4 -> 29.20 | I22: 70.60 | J22: =I22*0.6 -> 42.36 | K22: =J22+H22 -> 71.56 | L22: 3 | M22: 否
A23: 21 | B23: 岑秋平 | C23: 福泉市第一人民医院陆坪中心卫生院 | D23: 2005 | E23: 药房工作人员 | F23: 09 | G23: 53.00 | H23: 21.20 | I23: 72.60 | J23: 43.56 | K23: 64.76 | L23: 1 | M23: 是
A24: 22 | B24: 徐金莲 | C24: 福泉市第一人民医院陆坪中心卫生院 | D24: 2005 | E24: 药房工作人员 | F24: 09 | G24: 57.00 | H24: 22.80 | I24: 缺考 | J24: —— | K24: —— | L24: —— | M24: 否
A25: 23 | B25: 陈英 | C25: 福泉市第一人民医院陆坪中心卫生院 | D25: 2005 | E25: 药房工作人员 | F25: 09 | G25: 56.00 | H25: 22.40 | I25: 缺考 | J25: —— | K25: —— | L25: —— | M25: 否
A26: 24 | B26: 赵模楷 | C26: 福泉市第一人民医院陆坪中心卫生院 | D26: 2005 | E26: 中医馆工作人员 | F26: 10 | G26: 55.00 | H26: 22.00 | I26: 78.60 | J26: 47.16 | K26: =J26+H26 -> 69.16 | L26: 1 | M26: 是
A27: 25 | B27: 张玲 | C27: 福泉市第一人民医院地松卫生院 | D27: 2006 | E27: 护理人员 | F27: 11 | G27: 73.00 | H27: 29.20 | I27: 74.20 | J27: 44.52 | K27: =J27+H27 -> 73.72 | L27: 1 | M27: 是
A28: 26 | B28: 谢静 | C28: 福泉市第一人民医院地松卫生院 | D28: 2006 | E28: 护理人员 | F28: 11 | G28: 71.00 | H28: 28.40 | I28: 75.20 | J28: 45.12 | K28: =J28+H28 -> 73.52 | L28: 2 | M28: 否
A29: 27 | B29: 张婷婷 | C29: 福泉市第一人民医院地松卫生院 | D29: 2006 | E29: 护理人员 | F29: 11 | G29: 78.00 | H29: 31.20 | I29: 67.40 | J29: 40.44 | K29: =J29+H29 -> 71.64 | L29: 3 | M29: 否
